fUST/lending_fUST_20250601
["ID","MTS","AMOUNT","RATE_DAILY","PERIOD"]
[363563691,1748769054004,-217.99419479,0.00018485,2]
[363563692,1748769054013,-151.0,0.000185,2]
[363563693,1748769054023,-861.2183601,0.0001859,2]
[363563694,1748769054033,-151.0,0.0001863,2]
[363563695,1748769054044,-333.579359,0.0001863,2]
[363563696,1748769054054,-333.579359,0.0001863,2]
[363563697,1748769054063,-248.354092,0.0001863,2]
[363563698,1748769054073,-248.354092,0.0001863,2]
[363563699,1748769054083,-151.0,0.0001863,2]
[363563700,1748769054092,-151.0,0.0001863,2]
[363563701,1748769054102,-151.0,0.0001863,2]
[363563702,1748769054116,-163.207856,0.0001863,2]
[363563703,1748769054126,-163.207856,0.0001863,2]
[363563704,1748769054136,-152.601221,0.0001863,2]
[363563705,1748769054145,-151.669481,0.0001863,2]
[363563706,1748769054155,-151.0,0.0001863,2]
[363563707,1748769054165,-663.819199,0.0001863,2]
[363563708,1748769054175,-663.819199,0.0001863,2]
[363563709,1748769054184,-151.0,0.0001863,2]
[363563710,1748769054194,-239.597673,0.0001863,2]
[363563711,1748769054204,-173.65,0.0001863,2]
[363563712,1748769054214,-173.65,0.0001863,2]
[363563713,1748769054223,-151.0,0.0001863,2]
[363563714,1748769054233,-230.374296,0.0001863,2]
[363563715,1748769054242,-230.374296,0.0001863,2]
[363563716,1748769054252,-679.941622,0.0001863,2]
[363563717,1748769054261,-679.941622,0.0001863,2]
[363563718,1748769054271,-151.0,0.0001863,2]
[363563719,1748769054280,-431.34652,0.0001863,2]
[363563720,1748769054290,-431.34652,0.0001863,2]
[363563721,1748769054301,-151.0,0.0001863,2]
[363563722,1748769054313,-151.0,0.0001863,2]
[363563723,1748769054324,-430.0,0.0001863,2]
[363563724,1748769054333,-430.0,0.0001863,2]
[363563725,1748769054343,-151.0,0.0001863,2]
[363563726,1748769054356,-151.0,0.0001863,2]
[363563727,1748769054365,-153.04198,0.0001863,2]
[363563728,1748769054375,-153.04198,0.0001863,2]
[363563729,1748769054384,-342.48662,0.0001863,2]
[363563730,1748769054394,-342.48662,0.0001863,2]
[363563731,1748769054404,-430.0,0.0001863,2]
[363563732,1748769054416,-368.99529403,0.0001863,2]
[363563733,1748769054427,-386.43,0.0001863,2]
[363563734,1748769054436,-754.857297,0.0001863,2]
[363563735,1748769054446,-754.857297,0.0001863,2]
[363563736,1748769054455,-430.0,0.0001863,2]
[363563737,1748769054465,-1095.355991,0.0001863,2]
[363563738,1748769054475,-1095.355991,0.0001863,2]
[363563739,1748769054485,-430.0,0.0001863,2]
[363563740,1748769054496,-1699.4,0.0001863,2]
[363563741,1748769054506,-922.85,0.0001863,2]
[363563742,1748769054517,-935.56,0.0001863,2]
[363563743,1748769054526,-600.92,0.0001863,2]
[363563744,1748769054537,-631.37,0.0001863,2]
[363563745,1748769054546,-209.42029863,0.0001863,2]
[363563746,1748769054566,-767.04977121,0.0001863,2]
[363563747,1748769054917,-151.0,0.0001726,2]
[363563748,1748769054927,-329.68993016,0.0001863,2]
[363563749,1748769054937,-430.0,0.0001863,2]
[363563750,1748769054947,-446.83,0.0001863,2]
[363563751,1748769054957,-430.0,0.0001863,2]
[363563752,1748769054968,-456.88,0.0001863,2]
[363563753,1748769054978,-430.0,0.0001863,2]
[363563754,1748769054987,-430.0,0.0001863,2]
[363563755,1748769054997,-430.0,0.0001863,2]
[363563756,1748769055007,-430.0,0.0001863,2]
[363563757,1748769055019,-430.0,0.0001863,2]
[363563758,1748769055029,-430.0,0.0001863,2]
[363563759,1748769055040,-198.32501737,0.0001863,2]
[363563760,1748769055055,-231.67498263,0.0001863,2]
[363563761,1748769055065,-430.0,0.0001863,2]
[363563762,1748769055075,-652.58,0.0001863,2]
[363563763,1748769055084,-341.67721483,0.0001863,2]
[363563766,1748769207371,712.082806,0.00013699,2]
[363563768,1748769658837,10000.0,0.00014111,2]
[363563769,1748769667043,10000.0,0.00014111,2]
[363563770,1748769678921,10000.0,0.00014111,2]
[363563771,1748769685034,10000.0,0.00014111,2]
[363563772,1748769691817,10000.0,0.00014111,2]
[363563773,1748769698868,10000.0,0.00014111,2]
[363563774,1748769704546,10000.0,0.00014111,2]
[363563775,1748769712722,10000.0,0.00014111,2]
[363563776,1748769718088,10000.0,0.00014111,2]
[363563777,1748769718742,-412.89063936,0.00014396,2]
[363563778,1748769723669,10000.0,0.00014111,2]
[363563779,1748769730051,10000.0,0.00014111,2]
[363563781,1748769738814,10000.0,0.00014111,2]
[363563782,1748769746607,10000.0,0.00014111,2]
[363563783,1748769774884,8276.0,0.00014111,2]
[363563784,1748769804573,-236.28749876,0.00014252,2]
[363563785,1748769807862,-188.11901069,0.00014252,2]
[363563786,1748769809998,-164.36271843,0.00014252,2]
[363563787,1748769810630,-4411.23077212,0.00014252,2]
[363563788,1748769819809,110.76922788,0.00014252,2]
[363563796,1748769881304,-4866.0,0.00014252,2]
[363563802,1748770006569,5000.0,0.00014111,2]
[363564262,1748770029203,-3163.08480169,0.00014252,2]
[363564366,1748770051093,-122.70234488,0.00014252,2]
[363564367,1748770051115,-1807.11815434,0.00014396,2]
[363564617,1748770103785,245.05282632,0.00013964,2]
[363564619,1748770120522,1986.832735,0.0002,120]
[363564622,1748770158125,-7620.20908759,0.00014396,2]
[363564649,1748770232430,-159.78211871,0.00014396,2]
[363564650,1748770232440,-162.710189,0.00015285,2]
[363564651,1748770232451,-45.43033675,0.00015307,2]
[363564652,1748770232464,-254.56966325,0.00015307,2]
[363564653,1748770232473,-271.93033675,0.00015308,2]
[363564654,1748770232642,-261.76000001,0.00015308,2]
[363564655,1748770232655,-222.50658624,0.00015308,2]
[363564656,1748770232665,-162.710189,0.00015362,2]
[363564657,1748770232674,-588.7692279,0.00015432,2]
[363564658,1748770232684,-441.04162605,0.00016265,2]
[363564659,1748770232693,-448.00526991,0.000163,2]
[363564660,1748770232732,-395.24749181,0.000163,2]
[363564661,1748770232742,-843.25276144,0.000163,2]
[363564662,1748770232751,-837.24713871,0.00016338,2]
[363564663,1748770232761,-300.0,0.00016427,2]
[363564664,1748770232771,-207.4,0.00016427,2]
[363564665,1748770232781,-677.79,0.00016428,3]
[363564666,1748770232790,-338.9,0.00016428,3]
[363564667,1748770232800,-169.45,0.00016428,3]
[363564668,1748770232810,-508.36,0.00016428,3]
[363564669,1748770232819,-300.0,0.00016428,2]
[363564670,1748770232829,-300.0,0.00016428,2]
[363564671,1748770232838,-300.0,0.00016428,2]
[363564672,1748770232848,-300.0,0.00016428,2]
[363564673,1748770232857,-300.0,0.00016428,2]
[363564674,1748770232867,-300.0,0.00016428,2]
[363564675,1748770232876,-300.0,0.00016428,2]
[363564676,1748770232886,-300.0,0.00016428,2]
[363564677,1748770232895,-300.0,0.00016428,2]
[363564678,1748770232907,-300.0,0.00016428,2]
[363564679,1748770232916,-300.0,0.00016428,2]
[363564680,1748770232926,-300.0,0.00016428,2]
[363564681,1748770232935,-300.0,0.00016428,2]
[363564682,1748770232947,-369.67404491,0.00016428,2]
[363564683,1748770232961,-1147.05,0.00016436,2]
[363564684,1748770232971,-482.81288642,0.00016436,2]
[363564685,1748770232980,-391.16217561,0.00016436,2]
[363564686,1748770232990,-587.85557934,0.00016437,2]
[363564687,1748770233001,-570.15558881,0.00016437,2]
[363564688,1748770233011,-570.15558881,0.00016437,2]
[363564689,1748770233022,-570.15558881,0.00016437,2]
[363564690,1748770233035,-570.15558881,0.00016437,2]
[363564691,1748770233045,-570.15558881,0.00016437,2]
[363564692,1748770233055,-570.15558881,0.00016437,2]
[363564693,1748770233066,-570.15558881,0.00016437,2]
[363564694,1748770233077,-570.15558881,0.00016437,2]
[363564695,1748770233088,-570.15558881,0.00016437,2]
[363564696,1748770233098,-570.15558881,0.00016437,2]
[363564697,1748770233109,-570.15558881,0.00016437,2]
[363564698,1748770233119,-570.15558881,0.00016437,2]
[363564699,1748770233130,-570.15558881,0.00016437,2]
[363564700,1748770233140,-570.15558881,0.00016437,2]
[363564701,1748770233150,-570.15558881,0.00016437,2]
[363564702,1748770233160,-570.15558881,0.00016437,2]
[363564703,1748770233170,-570.15558881,0.00016437,2]
[363564704,1748770233180,-570.15558881,0.00016437,2]
[363564705,1748770233189,-570.15558881,0.00016437,2]
[363564706,1748770233200,-581.55870058,0.00016437,2]
[363564707,1748770233212,-581.55870058,0.00016437,2]
[363564708,1748770233222,-581.55870058,0.00016437,2]
[363564709,1748770233232,-581.55870058,0.00016437,2]
[363564710,1748770233242,-581.55870058,0.00016437,2]
[363564711,1748770233251,-581.55870058,0.00016437,2]
[363564712,1748770233261,-581.55870058,0.00016437,2]
[363564713,1748770233270,-581.55870058,0.00016437,2]
[363564714,1748770233280,-581.55870058,0.00016437,2]
[363564715,1748770233289,-683.3314732,0.00016437,2]
[363564716,1748770233299,-430.0,0.00016438,2]
[363564717,1748770233317,-408.20804156,0.00016438,2]
[363564718,1748770233329,-371.75727751,0.00016438,2]
[363564719,1748770233339,-430.0,0.00016438,2]
[363564720,1748770233349,-388.08608637,0.00016438,2]
[363564721,1748770233360,-188.83160997,0.00016438,2]
[363564722,1748770233369,-430.0,0.00016438,2]
[363564723,1748770233380,-430.0,0.00016438,2]
[363564724,1748770233391,-430.0,0.00016438,2]
[363564725,1748770233400,-430.0,0.00016438,2]
[363564726,1748770233410,-430.0,0.00016438,2]
[363564727,1748770233421,-430.0,0.00016438,2]
[363564728,1748770233431,-430.0,0.00016438,2]
[363564729,1748770233442,-430.0,0.00016438,2]
[363564730,1748770233452,-430.37016652,0.00016438,2]
[363564731,1748770233464,-430.0,0.00016438,2]
[363564732,1748770233475,-430.0,0.00016438,2]
[363564733,1748770233485,-430.0,0.00016438,2]
[363564734,1748770233496,-430.0,0.00016438,2]
[363564735,1748770233507,-430.0,0.00016438,2]
[363564736,1748770233517,-430.0,0.00016438,2]
[363564737,1748770233528,-430.0,0.00016438,2]
[363564738,1748770233538,-430.0,0.00016438,2]
[363564739,1748770233549,-196.29704414,0.00016438,2]
[363564740,1748770233559,-430.0,0.00016438,2]
[363564741,1748770233570,-401.56777746,0.00016438,2]
[363564742,1748770233580,-430.0,0.00016438,2]
[363564743,1748770233591,-470.0,0.00016438,2]
[363564744,1748770233601,-430.0,0.00016438,2]
[363564745,1748770233612,-430.0,0.00016438,2]
[363564746,1748770233622,-430.0,0.00016438,2]
[363564747,1748770233632,-430.0,0.00016438,2]
[363564748,1748770233642,-430.0,0.00016438,2]
[363564749,1748770233652,-430.0,0.00016438,2]
[363564750,1748770233662,-430.0,0.00016438,2]
[363564751,1748770233672,-354.44294857,0.00016438,2]
[363564752,1748770233682,-430.0,0.00016438,2]
[363564753,1748770233692,-430.0,0.00016438,2]
[363564754,1748770233702,-430.0,0.00016438,2]
[363564755,1748770233714,-430.0,0.00016438,2]
[363564756,1748770233725,-430.0,0.00016438,2]
[363564757,1748770233735,-430.0,0.00016438,2]
[363564758,1748770233746,-417.86177832,0.00016438,2]
[363564759,1748770233756,-430.8159445,0.00016438,2]
[363564760,1748770233767,-430.0,0.00016438,2]
[363564761,1748770233777,-434.96709773,0.00016438,2]
[363564762,1748770233787,-430.0,0.00016438,2]
[363564763,1748770233797,-430.0,0.00016438,2]
[363564764,1748770233807,-430.0,0.00016438,2]
[363564765,1748770233818,-430.0,0.00016438,2]
[363564766,1748770233829,-332.41062033,0.00016438,2]
[363564767,1748770233838,-431.1115336,0.00016438,2]
[363564768,1748770233849,-430.0,0.00016438,2]
[363564769,1748770233859,-430.0,0.00016438,2]
[363564770,1748770233870,-189.22701946,0.00016438,2]
[363564771,1748770233880,-430.0,0.00016438,2]
[363564772,1748770233891,-430.0,0.00016438,2]
[363564773,1748770233902,-430.0,0.00016438,2]
[363564774,1748770233912,-326.49606422,0.00016438,2]
[363564775,1748770233923,-430.0,0.00016438,2]
[363564776,1748770233933,-430.0,0.00016438,2]
[363564777,1748770233947,-370.0,0.00016438,2]
[363564778,1748770233958,-430.0,0.00016438,2]
[363564779,1748770233968,-430.0,0.00016438,2]
[363564780,1748770233978,-430.0,0.00016438,2]
[363564781,1748770233990,-430.0,0.00016438,2]
[363564782,1748770234000,-430.0,0.00016438,2]
[363564783,1748770234010,-431.01518832,0.00016438,2]
[363564784,1748770234021,-430.0,0.00016438,2]
[363564785,1748770234032,-430.0,0.00016438,2]
[363564786,1748770234042,-235.14304205,0.00016438,2]
[363564787,1748770234052,-430.0,0.00016438,2]
[363564788,1748770234063,-430.0,0.00016438,2]
[363564789,1748770234073,-370.0,0.00016438,2]
[363564790,1748770234083,-430.0,0.00016438,2]
[363564791,1748770234094,-320.0,0.00016438,2]
[363564792,1748770234104,-430.0,0.00016438,2]
[363564793,1748770234114,-430.0,0.00016438,2]
[363564794,1748770234124,-504.27314778,0.00016438,2]
[363564795,1748770234134,-430.0,0.00016438,2]
[363564796,1748770234145,-430.0,0.00016438,2]
[363564797,1748770234155,-430.0,0.00016438,2]
[363564798,1748770234166,-326.48807226,0.00016438,2]
[363564799,1748770234176,-430.0,0.00016438,2]
[363564800,1748770234186,-430.0,0.00016438,2]
[363564801,1748770234197,-430.0,0.00016438,2]
[363564802,1748770234209,-430.0,0.00016438,2]
[363564803,1748770234219,-430.0,0.00016438,2]
[363564804,1748770234228,-430.0,0.00016438,2]
[363564805,1748770234239,-430.0,0.00016438,2]
[363564806,1748770234249,-430.0,0.00016438,2]
[363564807,1748770234259,-431.67809199,0.00016438,2]
[363564808,1748770234269,-430.0,0.00016438,2]
[363564809,1748770234279,-430.0,0.00016438,2]
[363564810,1748770234290,-430.0,0.00016438,2]
[363564811,1748770234301,-450.0,0.00016438,2]
[363564812,1748770234311,-430.0,0.00016438,2]
[363564813,1748770234321,-430.0,0.00016438,2]
[363564814,1748770234331,-430.0,0.00016438,2]
[363564815,1748770234342,-430.0,0.00016438,2]
[363564816,1748770234351,-430.0,0.00016438,2]
[363564817,1748770234362,-430.0,0.00016438,2]
[363564818,1748770234372,-430.0,0.00016438,2]
[363564819,1748770234382,-430.0,0.00016438,2]
[363564820,1748770234393,-430.0,0.00016438,2]
[363564821,1748770234402,-526.74240925,0.00016438,2]
[363564822,1748770234413,-430.0,0.00016438,2]
[363564823,1748770234423,-430.0,0.00016438,2]
[363564824,1748770234434,-430.0,0.00016438,2]
[363564825,1748770234443,-400.0,0.00016438,2]
[363564826,1748770234453,-370.0,0.00016438,2]
[363564827,1748770234464,-396.56474699,0.00016438,2]
[363564828,1748770234483,-103.43525301,0.00016438,2]
[363564829,1748770234493,-363.29837282,0.00016438,2]
[363564830,1748770234503,-430.0,0.00016438,2]
[363564831,1748770234512,-430.0,0.00016438,2]
[363564832,1748770234522,-430.0,0.00016438,2]
[363564833,1748770234532,-430.0,0.00016438,2]
[363564834,1748770234541,-430.0,0.00016438,2]
[363564835,1748770234551,-430.0,0.00016438,2]
[363564836,1748770234560,-430.0,0.00016438,2]
[363564837,1748770234571,-430.0,0.00016438,2]
[363564838,1748770234582,-574.69708411,0.00016438,2]
[363564839,1748770234593,-430.0,0.00016438,2]
[363564840,1748770234603,-430.0,0.00016438,2]
[363564841,1748770234614,-430.0,0.00016438,2]
[363564842,1748770234626,-430.0,0.00016438,2]
[363564843,1748770234637,-430.0,0.00016438,2]
[363564844,1748770234647,-430.0,0.00016438,2]
[363564845,1748770234658,-430.0,0.00016438,2]
[363564846,1748770234668,-430.0,0.00016438,2]
[363564847,1748770234680,-430.0,0.00016438,2]
[363564848,1748770234691,-408.05535949,0.00016438,2]
[363564849,1748770234702,-430.0,0.00016438,2]
[363564850,1748770234717,-400.0,0.00016438,2]
[363564851,1748770234728,-430.0,0.00016438,2]
[363564852,1748770234739,-430.0,0.00016438,2]
[363564853,1748770234750,-433.67932305,0.00016438,2]
[363564854,1748770234761,-482.15,0.00016438,2]
[363564855,1748770234773,-430.0,0.00016438,2]
[363564856,1748770234783,-430.0,0.00016438,2]
[363564857,1748770234793,-430.0,0.00016438,2]
[363564858,1748770234804,-500.0,0.00016438,2]
[363564859,1748770234813,-500.0,0.00016438,2]
[363564860,1748770234824,-538.59,0.00016438,2]
[363564861,1748770234834,-430.0,0.00016438,2]
[363564862,1748770234844,-430.0,0.00016438,2]
[363564863,1748770234854,-430.0,0.00016438,2]
[363564864,1748770234864,-430.0,0.00016438,2]
[363564865,1748770234874,-430.0,0.00016438,2]
[363564866,1748770234885,-430.0,0.00016438,2]
[363564867,1748770234895,-430.0,0.00016438,2]
[363564868,1748770234905,-430.0,0.00016438,2]
[363564869,1748770234916,-203.72963428,0.00016438,2]
[363564870,1748770234925,-430.90228661,0.00016438,2]
[363564871,1748770234935,-430.0,0.00016438,2]
[363564872,1748770234946,-430.0,0.00016438,2]
[363564873,1748770234959,-430.0,0.00016438,2]
[363564874,1748770234970,-430.0,0.00016438,2]
[363564875,1748770234980,-430.0,0.00016438,2]
[363564876,1748770234990,-559.39795049,0.00016438,2]
[363564877,1748770235002,-430.0,0.00016438,2]
[363564878,1748770235013,-430.0,0.00016438,2]
[363564879,1748770235022,-413.36973823,0.00016438,2]
[363564880,1748770235032,-252.98540738,0.00016438,2]
[363564881,1748770235042,-430.0,0.00016438,2]
[363564882,1748770235054,-430.0,0.00016438,2]
[363564883,1748770235064,-430.0,0.00016438,2]
[363564884,1748770235074,-430.0,0.00016438,2]
[363564885,1748770235084,-430.0,0.00016438,2]
[363564886,1748770235093,-430.0,0.00016438,2]
[363564887,1748770235103,-430.0,0.00016438,2]
[363564888,1748770235113,-430.0,0.00016438,2]
[363564889,1748770235123,-430.0,0.00016438,2]
[363564890,1748770235133,-430.0,0.00016438,2]
[363564891,1748770235142,-433.37282565,0.00016438,2]
[363564892,1748770235153,-430.0,0.00016438,2]
[363564893,1748770235163,-430.0,0.00016438,2]
[363564894,1748770235173,-430.0,0.00016438,2]
[363564895,1748770235184,-430.0,0.00016438,2]
[363564896,1748770235194,-430.57713144,0.00016438,2]
[363564897,1748770235204,-430.0,0.00016438,2]
[363564898,1748770235215,-430.0,0.00016438,2]
[363564899,1748770235225,-430.0,0.00016438,2]
[363564900,1748770235235,-430.0,0.00016438,2]
[363564901,1748770235245,-500.0,0.00016438,2]
[363564902,1748770235255,-500.0,0.00016438,2]
[363564903,1748770235265,-430.0,0.00016438,2]
[363564904,1748770235275,-430.0,0.00016438,2]
[363564905,1748770235285,-158.28126775,0.00016438,2]
[363564906,1748770235295,-430.0,0.00016438,2]
[363564907,1748770235305,-430.0,0.00016438,2]
[363564908,1748770235314,-565.75787882,0.00016438,2]
[363564909,1748770235324,-430.0,0.00016438,2]
[363564910,1748770235334,-430.0,0.00016438,2]
[363564911,1748770235344,-430.0,0.00016438,2]
[363564912,1748770235354,-430.0,0.00016438,2]
[363564913,1748770235364,-430.26072065,0.00016438,2]
[363564914,1748770235374,-430.0,0.00016438,2]
[363564915,1748770235384,-430.0,0.00016438,2]
[363564916,1748770235394,-430.0,0.00016438,2]
[363564917,1748770235404,-430.0,0.00016438,2]
[363564918,1748770235413,-335.05464556,0.00016438,2]
[363564919,1748770235424,-430.0,0.00016438,2]
[363564920,1748770235433,-430.0,0.00016438,2]
[363564921,1748770235443,-430.0,0.00016438,2]
[363564922,1748770235453,-563.84241964,0.00016438,2]
[363564923,1748770235463,-430.0,0.00016438,2]
[363564924,1748770235472,-430.0,0.00016438,2]
[363564925,1748770235482,-430.0,0.00016438,2]
[363564926,1748770235491,-430.0,0.00016438,2]
[363564927,1748770235501,-430.0,0.00016438,2]
[363564928,1748770235511,-435.24736332,0.00016438,2]
[363564929,1748770235521,-430.0,0.00016438,2]
[363564930,1748770235531,-502.79287133,0.00016438,2]
[363564931,1748770235541,-430.0,0.00016438,2]
[363564932,1748770235551,-430.0,0.00016438,2]
[363564933,1748770235561,-430.0,0.00016438,2]
[363564934,1748770235570,-430.0,0.00016438,2]
[363564935,1748770235580,-430.0,0.00016438,2]
[363564936,1748770235590,-430.0,0.00016438,2]
[363564937,1748770235600,-533.80803155,0.00016438,2]
[363564938,1748770235609,-430.0,0.00016438,2]
[363564939,1748770235619,-402.54168944,0.00016438,2]
[363564940,1748770235629,-430.56797011,0.00016438,2]
[363564941,1748770235639,-430.0,0.00016438,2]
[363564942,1748770235648,-430.0,0.00016438,2]
[363564943,1748770235658,-430.0,0.00016438,2]
[363564944,1748770235667,-573.29179263,0.00016438,2]
[363564945,1748770235677,-430.0,0.00016438,2]
[363564946,1748770235687,-430.0,0.00016438,2]
[363564947,1748770235697,-430.0,0.00016438,2]
[363564948,1748770235707,-259.86814561,0.00016438,2]
[363564949,1748770235718,-430.0,0.00016438,2]
[363564950,1748770235727,-430.0,0.00016438,2]
[363564951,1748770235738,-430.0,0.00016438,2]
[363564952,1748770235748,-430.0,0.00016438,2]
[363564953,1748770235758,-1703.33,0.00016438,2]
[363564954,1748770235767,-430.0,0.00016438,2]
[363564955,1748770235778,-430.0,0.00016438,2]
[363564956,1748770235788,-430.0,0.00016438,2]
[363564957,1748770235798,-391.21854392,0.00016438,2]
[363564958,1748770235808,-430.0,0.00016438,2]
[363564959,1748770235817,-270.0,0.00016438,2]
[363564960,1748770235828,-430.0,0.00016438,2]
[363564961,1748770235838,-430.0,0.00016438,2]
[363564962,1748770235850,-430.0,0.00016438,2]
[363564963,1748770235861,-430.0,0.00016438,2]
[363564964,1748770235871,-430.0,0.00016438,2]
[363564965,1748770235881,-430.0,0.00016438,2]
[363564966,1748770235891,-500.0,0.00016438,2]
[363564967,1748770236042,-430.0,0.00016438,2]
[363564968,1748770236054,-430.0,0.00016438,2]
[363564969,1748770236064,-430.0,0.00016438,2]
[363564970,1748770236074,-430.0,0.00016438,2]
[363564971,1748770236084,-359.15479179,0.00016438,2]
[363564972,1748770236094,-430.0,0.00016438,2]
[363564973,1748770236104,-430.0,0.00016438,2]
[363564974,1748770236114,-430.0,0.00016438,2]
[363564975,1748770236124,-430.0,0.00016438,2]
[363564976,1748770236134,-430.0,0.00016438,2]
[363564977,1748770236144,-430.0,0.00016438,2]
[363564978,1748770236154,-430.0,0.00016438,2]
[363564979,1748770236164,-352.75920492,0.00016438,2]
[363564980,1748770236175,-430.0,0.00016438,2]
[363564981,1748770236185,-430.0,0.00016438,2]
[363564982,1748770236196,-430.0,0.00016438,2]
[363564983,1748770236206,-430.0,0.00016438,2]
[363564984,1748770236216,-430.0,0.00016438,2]
[363564985,1748770236225,-866.2,0.00016438,2]
[363564986,1748770236235,-323.66393533,0.00016438,2]
[363564987,1748770236245,-430.0,0.00016438,2]
[363564988,1748770236255,-430.0,0.00016438,2]
[363564989,1748770236265,-430.0,0.00016438,2]
[363564990,1748770236275,-430.0,0.00016438,2]
[363564991,1748770236284,-430.0,0.00016438,2]
[363564992,1748770236294,-430.0,0.00016438,2]
[363564993,1748770236304,-1626.01,0.00016438,2]
[363564994,1748770236314,-430.0,0.00016438,2]
[363564995,1748770236324,-430.0,0.00016438,2]
[363564996,1748770236334,-430.0,0.00016438,2]
[363564997,1748770236343,-430.0,0.00016438,2]
[363564998,1748770236354,-430.0,0.00016438,2]
[363564999,1748770236363,-430.0,0.00016438,2]
[363565000,1748770236374,-691.58,0.00016438,2]
[363565001,1748770236384,-430.0,0.00016438,2]
[363565002,1748770236394,-430.0,0.00016438,2]
[363565003,1748770236404,-430.0,0.00016438,2]
[363565004,1748770236414,-430.0,0.00016438,2]
[363565005,1748770236424,-687.88,0.00016438,2]
[363565006,1748770236433,-327.56847809,0.00016438,2]
[363565007,1748770236443,-430.0,0.00016438,2]
[363565008,1748770236453,-430.0,0.00016438,2]
[363565009,1748770236464,-402.19701042,0.00016438,2]
[363565010,1748770236474,-1139.26,0.00016438,2]
[363565011,1748770236483,-430.0,0.00016438,2]
[363565012,1748770236493,-430.0,0.00016438,2]
[363565013,1748770236503,-430.0,0.00016438,2]
[363565014,1748770236513,-562.78,0.00016438,2]
[363565015,1748770236522,-430.0,0.00016438,2]
[363565016,1748770236532,-430.0,0.00016438,2]
[363565017,1748770236542,-430.0,0.00016438,2]
[363565018,1748770236552,-503.99,0.00016438,2]
[363565019,1748770236561,-430.0,0.00016438,2]
[363565020,1748770236570,-223.61063108,0.00016438,2]
[363565021,1748770236580,-200.0,0.00016438,2]
[363565022,1748770236589,-430.0,0.00016438,2]
[363565023,1748770236599,-430.0,0.00016438,2]
[363565024,1748770236609,-430.0,0.00016438,2]
[363565025,1748770236618,-430.0,0.00016438,2]
[363565026,1748770236628,-430.0,0.00016438,2]
[363565027,1748770236638,-430.0,0.00016438,2]
[363565028,1748770236647,-452.31208752,0.00016438,2]
[363565029,1748770236657,-430.0,0.00016438,2]
[363565030,1748770236666,-369.2641632,0.00016438,2]
[363565031,1748770236676,-430.0,0.00016438,2]
[363565032,1748770236685,-430.0,0.00016438,2]
[363565033,1748770236695,-430.0,0.00016438,2]
[363565034,1748770236705,-1378.54,0.00016438,2]
[363565035,1748770236716,-430.0,0.00016438,2]
[363565036,1748770236726,-430.0,0.00016438,2]
[363565037,1748770236735,-430.0,0.00016438,2]
[363565038,1748770236745,-430.0,0.00016438,2]
[363565039,1748770236756,-430.0,0.00016438,2]
[363565040,1748770236765,-430.0,0.00016438,2]
[363565041,1748770236775,-430.0,0.00016438,2]
[363565042,1748770236786,-430.0,0.00016438,2]
[363565043,1748770236796,-430.0,0.00016438,2]
[363565044,1748770236806,-430.0,0.00016438,2]
[363565045,1748770236816,-430.0,0.00016438,2]
[363565046,1748770236826,-430.0,0.00016438,2]